[Event "Krakow Championship-A 2022"]
[Site "Krakow"]
[Date "2022.06.25"]
[Round "1.20"]
[White "Turski, Bartlomiej"]
[Black "Danielyan, Vahe"]
[Result "1/2-1/2"]
[ECO "B36"]
[WhiteElo "2192"]
[BlackElo "2324"]
[Annotator "ChessBase"]
[PlyCount "123"]
[EventDate "2022.06.25"]
[EventType "swiss"]
[EventCountry "POL"]
[SourceTitle "playchess.com"]
[Source "ChessBase"]
[SourceQuality "1"]
[TimeControl "40/5400+30:1800+30"]

1. e4 {[%emt 0:00:03]} c5 {[%emt 0:01:11]} 2. Nf3 {[%emt 0:00:06]} Nc6 {[%emt 0:00:05]} 3. d4 {[%emt 0:00:09]} cxd4 {[%emt 0:00:09]} 4. Nxd4 {[%emt 0:00:05]} g6 {[%emt 0:01:52]} 5. c4 {[%emt 0:00:09]} Nf6 {[%emt 0:00:18]} 6. Nc3 {[%emt 0:00:07]} Nxd4 {[%emt 0:00:04]} 7. Qxd4 {[%emt 0:00:08]} d6 {[%emt 0:00:03]} 8. Be2 {[%emt 0:00:19]} Bg7 {[%emt 0:00:05]} 9. Be3 {[%emt 0:00:05]} O-O {[%emt 0:00:06]} 10. Qd2 {[%emt 0:00:05]} a5 {[%emt 0:00:05]} 11. O-O {[%emt 0:01:30]} a4 {[%emt 0:00:04]} 12. Rad1 {[%emt 0:00:41]} Qa5 {[%emt 0:00:18]} 13. Bd4 {[%emt 0:00:33]} Be6 {[%emt 0:03:08]} 14. f4 {[%emt 0:00:42]} Rfc8 {[%emt 0:05:23]} 15. b3 {[%emt 0:00:16]} Kh8 {[%emt 0:08:03]} 16. Nxa4 {[%emt 0:12:18]} Qxd2 {[%emt 0:09:16]} 17. Rxd2 {[%emt 0:00:08]} Nxe4 {[%emt 0:00:18]} 18. Bxg7+ {[%emt 0:00:16]} Kxg7 {[%emt 0:00:04]} 19. Rd4 {[%emt 0:00:52]} Nc5 {[%emt 0:03:20]} 20. Nb6 {[%emt 0:09:26]} Rxa2 {[%emt 0:01:38]} 21. Nxc8 {[%emt 0:00:21]} Bxc8 {[%emt 0:06:59]} 22. b4 {[%emt 0:10:48]} Rxe2 {[%emt 0:04:38]} 23. bxc5 {[%emt 0:00:06]} dxc5 {[%emt 0:00:03]} 24. Rd5 {[%emt 0:00:29]} b6 {[%emt 0:00:52]} 25. Re5 {[%emt 0:01:50]} Rc2 {[%emt 0:00:29]} 26. Rxe7 {[%emt 0:02:59]} Rxc4 {[%emt 0:03:42]} 27. Rb1 {[%emt 0:01:00]} Rxf4 {[%emt 0:00:06]} 28. Rxb6 {[%emt 0:00:06]} c4 {[%emt 0:02:40]} 29. Rc6 {[%emt 0:06:47]} Kf8 {[%emt 0:01:51]} 30. g3 {[%emt 0:10:15]} Rd4 {[%emt 0:01:35]} 31. Rec7 {[%emt 0:02:21]} Be6 {[%emt 0:00:37]} 32. h4 {[%emt 0:01:34]} h5 {[%emt 0:01:36]} 33. Kf2 {[%emt 0:02:14]} Ke8 {[%emt 0:03:27]} 34. Ke3 {[%emt 0:02:59]} Rg4 {[%emt 0:00:11]} 35. Kf2 {[%emt 0:00:39]} Kf8 {[%emt 0:00:01]} 36. Rd6 {[%emt 0:01:08]} Re4 {[%emt 0:02:49]} 37. Rdc6 {[%emt 0:00:53]} Rd4 {[%emt 0:01:08]} 38. Ke3 {[%emt 0:01:01]} Rd3+ {[%emt 0:00:33]} 39. Kf2 {[%emt 0:00:46]} Rc3 {[%emt 0:00:29]} 40. Rd6 {[%emt 0:02:57]} Bg4 {[%emt 0:04:43]} 41. Rdc6 {[%emt 0:32:50]} Rc2+ {[%emt 0:30:15]} 42. Kg1 {[%emt 0:01:35]} Be6 {[%emt 0:02:20]} 43. Rd6 {[%emt 0:01:37]} Bh3 {[%emt 0:02:58]} 44. Rdc6 {[%emt 0:01:31]} Rg2+ {[%emt 0:01:36]} 45. Kh1 {[%emt 0:00:14]} Rxg3 {[%emt 0:00:07]} 46. Rxc4 {[%emt 0:00:06]} Be6 {[%emt 0:00:59]} 47. Rf4 {[%emt 0:00:47]} Kg7 {[%emt 0:00:47]} 48. Kh2 {[%emt 0:00:21]} Rd3 {[%emt 0:00:18]} 49. Ra7 {[%emt 0:01:45]} Bf5 {[%emt 0:00:43]} 50. Ra6 {[%emt 0:00:44]} Rd5 {[%emt 0:02:07]} 51. Rc6 {[%emt 0:01:05]} Bd7 {[%emt 0:02:37]} 52. Rcc4 {[%emt 0:01:51]} Be6 {[%emt 0:01:47]} 53. Rc7 {[%emt 0:01:03]} g5 {[%emt 0:00:33]} 54. hxg5 {[%emt 0:01:06]} Rxg5 {[%emt 0:00:01]} 55. Rc2 {[%emt 0:01:20]} Kg6 {[%emt 0:00:25]} 56. Rcf2 {[%emt 0:01:02]} f5 {[%emt 0:01:56]} 57. Rg2 {[%emt 0:04:28]} Rg4 {[%emt 0:00:01]} 58. Rfxg4+ {[%emt 0:01:07]} hxg4 {[%emt 0:01:27]} 59. Kg3 {[%emt 0:00:06]} Kg5 {[%emt 0:00:05]} 60. Rf2 {[%emt 0:00:07]} Bd5 {[%emt 0:00:04]} 61. Rf1 {[%emt 0:00:29]} Bf3 {[%emt 0:00:51]} 62. Rxf3 {[%emt 0:00:25]} 1/2-1/2

[Event "Krakow Championship-A 2022"]
[Site "Krakow"]
[Date "2022.06.25"]
[Round "1.21"]
[White "Lye, Lik Zang"]
[Black "Stevik, Patrik jun."]
[Result "0-1"]
[ECO "A49"]
[WhiteElo "2358"]
[BlackElo "2188"]
[Annotator "TA"]
[PlyCount "121"]
[EventDate "2022.06.25"]
[EventType "swiss"]
[EventCountry "POL"]
[SourceTitle "playchess.com"]
[Source "ChessBase"]
[SourceQuality "1"]
[TimeControl "40/5400+30:1800+30"]

{[%evp 18,121,29,30,35,37,50,0,0,0,8,4,4,0,3,4,-2,-9,15,-44,-42,-25,-13,-77,-25,-192,-172,-254,-264,-245,-209,-241,-144,-130,-155,-165,-177,-181,-184,-157,-179,-152,-14,-107,-117,-119,-140,-237,-63,-62,0,0,0,0,0,0,0,0,0,0,0,0,311,311,311,311,311,311,311,155,268,268,268,268,311,311,319,319,407,407,354,83,83,83,83,83,83,83,83,83,83,83,80,80,83,0,0,0,0,0,0,0,0,0,0,0]} 1. d4 {[%emt 0:00:04]} Nf6 {[%emt 0:00:36]} 2. Nf3 {[%emt 0:00:22]} g6 {[%emt 0:01:14]} 3. g3 {[%emt 0:00:29]} Bg7 {[%emt 0:01:07]} 4. Bg2 {[%emt 0:00:13]} O-O {[%emt 0:00:08]} 5. O-O {[%emt 0:00:08]} d5 {[%emt 0:01:25]} 6. Nbd2 {[%emt 0:00:26]} Nc6 {[%emt 0:03:44]} 7. c4 {[%emt 0:06:08]} dxc4 {[%emt 0:03:19]} 8. Nxc4 {[%emt 0:00:45]} Be6 {[%emt 0:03:14]} 9. b3 {[%emt 0:08:52]} Bd5 {[%emt 0:07:19]} 10. Bb2 {[%emt 0:13:25]} e6 {[%emt 0:06:35] D77: Fianchetto Grünfeld: 6 0-0: Replies other than 6...c6.} 11. Rc1 {[%emt 0:03:29]} a5 {[%emt 0:02:43][%cal Oa5a4] [#]} 12. Nce5 $146 {[%emt 0:06:24]} ({Predecessor:} 12. a3 Re8 13. e3 Bf8 14. Re1 Bg7 15. Qc2 Be4 16. Qe2 Bd5 17. Red1 Qe7 18. Ncd2 Ne4 19. Rc2 Nxd2 20. Nxd2 Bxg2 21. Kxg2 {1-0 (45) Epishin,V (2574)-Mekhitarian,K (2504) Parla 2008}) 12... a4 {[%emt 0:11:47]} 13. bxa4 {[%emt 0:05:36]} Nxe5 {[%emt 0:04:57]} 14. dxe5 {[%emt 0:04:40]} Nd7 {[%emt 0:01:32]} 15. Bc3 {[%emt 0:12:40]} c5 {[%emt 0:17:18]} 16. Qc2 {[%emt 0:06:25]} Qc7 {[%emt 0:01:01]} 17. Rfd1 {[%emt 0:15:18]} Rfc8 {[%emt 0:04:53]} 18. e4 {[%emt 0:07:31]} (18. a3 $11) 18... Bc6 $15 {[%emt 0:01:04][%mdl 1024] Black has compensation.} 19. a5 {[%emt 0:00:29]} b5 {[%emt 0:06:51]} 20. Rd6 {[%emt 0:05:11]} (20. a3 $11) 20... Qb7 {[%emt 0:02:02]} (20... Nxe5 $2 21. Bxe5 Bxe5 22. Rxc6 Qxc6 23. Nxe5 $16) (20... Bh6 $1 $17 {[%cal Rh6c1]} 21. Bd2 Bf8) 21. Qd2 {[%emt 0:01:15]} (21. a3 $11) 21... b4 $19 {[%emt 0:00:37]} 22. Ba1 {[%emt 0:00:54]} (22. Bxb4 $142 cxb4 23. Rcxc6 Rxc6 24. Rxd7) 22... Rxa5 {[%emt 0:01:38]} 23. Bf1 {[%emt 0:00:26]} Rca8 {[%emt 0:03:59]} 24. Bc4 {[%emt 0:00:36]} Nf8 {[%emt 0:00:52]} (24... Nb6 $1 $19 {[%cal Rb6c4]} 25. Bb3 (25. Rd8+ $2 Bf8 $19) 25... Bxe4) 25. Qf4 $17 {[%emt 0:00:39]} h6 {[%emt 0:01:22]} (25... Bxe4 26. Nd2 Bd5 27. Nb3 $15) 26. Nd2 {[%emt 0:00:27]} Bb5 {[%emt 0:04:29]} 27. Nb3 {[%emt 0:00:31]} Bxc4 {[%emt 0:03:31]} 28. Nxa5 {[%emt 0:00:10]} Rxa5 {[%emt 0:00:04]} 29. Rxc4 {[%emt 0:00:11]} b3 {[%emt 0:01:07]} ({Better is} 29... Rxa2 $17 30. Rc1 b3) 30. Qc1 {[%emt 0:01:01]} (30. Rd2 $1 $11) 30... Rxa2 {[%emt 0:00:23]} 31. Bb2 {[%emt 0:00:35]} Nd7 {[%emt 0:01:21]} 32. f4 {[%emt 0:00:33]} (32. Rxd7 $17 Qxd7 33. Rxc5) 32... Nb6 $2 {[%emt 0:00:42]} (32... Bf8 $19 33. Rd3 Nb8) 33. Rxc5 $15 {[%emt 0:00:19] [#]} Na4 {[%emt 0:00:17]} ({Black should play} 33... Rxb2 $1 $15 34. Qxb2 (34. Rd8+ Kh7 $17) 34... Na4 35. Rc8+ (35. Rd8+ $2 Kh7 $19) 35... Qxc8 36. Qxb3 Nc3) 34. Rc8+ $11 {[%emt 0:00:22]} Kh7 {[%emt 0:00:08]} 35. Rc7 $1 {[%emt 0:00:37]} Qxe4 {[%emt 0:03:02]} 36. Rxf7 {[%emt 0:00:11]} Nc5 $1 {[%emt 0:00:11]} (36... Nxb2 $2 {leads to mate.} 37. Rxg7+ $1 {[%mdl 512]} Kxg7 38. Rd7+ Kh8 39. Qc8#) 37. Rd4 {[%emt 0:01:03]} (37. Qxc5 Qe1+ 38. Kg2 Rxb2+) 37... Qe2 {[%emt 0:01:37] Chess con chili.} 38. Rd2 {[%emt 0:00:22]} Qe3+ {[%emt 0:00:41]} 39. Kg2 {[%emt 0:00:28]} h5 $2 {[%emt 0:00:36][%mdl 8192] [#]} (39... Ne4 $2 40. Rxg7+ $1 {[%mdl 512]} Kxg7 41. Rd7+ Kh8 42. Qc8#) (39... Nd3 $11 {and Black stays safe.} 40. Rxg7+ Kxg7 41. Qc7+ Kh8 42. Qd8+ Kh7 43. Rxd3 Qe2+ 44. Kh3 Qh5+ 45. Kg2 Qe2+ 46. Kh3 Qh5+ 47. Kg2 Qe2+) 40. Rxg7+ $1 $18 {[%emt 0:00:23][%mdl 512]} Kxg7 {[%emt 0:00:29] [#]} 41. Rd7+ {[%emt 0:30:08][%mdl 512]} Nxd7 {[%emt 0:00:13]} 42. Qxe3 {[%emt 0:00:00]} Rxb2+ {[%emt 0:00:01][%mdl 4096] Endgame KQ-KRN} 43. Kf3 {[%emt 0:00:00]} (43. Kh3 $18 Nf8 44. Qc3) 43... Nf8 {[%emt 0:00:44]} (43... Rxh2 $16 {was worth a try.} 44. Qxb3 Kf7) 44. h3 {[%emt 0:00:00]} Kg8 {[%emt 0:01:34]} 45. Qc3 {[%emt 0:00:00]} Rb1 {[%emt 0:00:21]} 46. Qd3 {[%emt 0:00:00]} Rb2 {[%emt 0:00:27]} 47. g4 {[%emt 0:00:00]} h4 {[%emt 0:04:32] [#]} 48. Ke4 $1 {[%emt 0:00:00]} Kg7 {[%emt 0:02:53]} 49. f5 $2 {[%emt 0:00:00]} (49. Qe3 $18 {is more deadly.}) 49... gxf5+ $16 {[%emt 0:00:17]} 50. gxf5 {[%emt 0:00:00]} exf5+ {[%emt 0:00:10]} 51. Kd5 {[%emt 0:00:00] Black must now prevent e6.} ({Much weaker is} 51. Kxf5 Rf2+ 52. Kg4 Rg2+ 53. Kh5 (53. Kxh4 {is a self mate.} Ng6+) 53... b2 $11) 51... Ng6 {[%emt 0:01:00] [#] ( -> ...Nf4+)} 52. Kd6 $1 {[%emt 0:00:00] aiming for e6.} Rg2 {[%emt 0:06:52] ...b2 is the strong threat.} 53. Qxb3 {[%emt 0:00:13] Intending Qb7+ and mate.} Re2 {[%emt 0:03:23]} 54. Qb7+ {[%emt 0:01:38]} Kh6 {[%emt 0:00:24]} 55. e6 {[%emt 0:02:44]} f4 {[%emt 0:01:27]} 56. Qf7 {[%emt 0:03:13]} ({White should try} 56. Qd5 $16) 56... Kg5 $1 $11 {[%emt 0:01:36] The position is equal.} 57. Kd5 {[%emt 0:00:40]} Rd2+ {[%emt 0:01:11]} 58. Ke4 {[%emt 0:00:36] Hoping for Qf5+.} Re2+ {[%emt 0:00:34]} 59. Kd4 {[%emt 0:00:22]} Rd2+ {[%emt 0:00:53]} 60. Ke4 {[%emt 0:00:29] Threatens to win with Qf5+.} Re2+ {[%emt 0:00:04]} 61. Kd4 {[%emt 0:00:38][%mdl 32768] White used his chance.  Weighted Error Value: White=0.31/Black=0.30. Sensor Board Error (Ke4/e5)?} 0-1

[Event "Krakow Championship-A 2022"]
[Site "Krakow"]
[Date "2022.06.25"]
[Round "1.22"]
[White "Easwaralingam, Adesh"]
[Black "Turcan, Richard"]
[Result "0-1"]
[ECO "B76"]
[WhiteElo "2116"]
[BlackElo "2278"]
[Annotator "TA"]
[PlyCount "108"]
[EventDate "2022.06.25"]
[EventType "swiss"]
[EventCountry "POL"]
[SourceTitle "playchess.com"]
[Source "ChessBase"]
[SourceQuality "1"]
[TimeControl "40/5400+30:1800+30"]

{[%evp 22,108,16,36,37,0,91,21,14,0,0,4,-18,-35,0,0,0,0,-7,-72,-69,-59,-63,-90,-89,-95,-91,-112,-92,-127,-102,-125,-111,-111,-108,-137,-140,-140,-127,-161,-157,-153,-153,-215,-151,-124,0,0,0,0,0,0,0,0,0,0,0,-8,-8,-104,-59,-386,-59,-379,-357,-235,-77,-29976,-1162,-29970,-1369,-5093,-2502,-29982,-29983,-29983,-29984,-29984,-29985,-29985,-29986,-29985,-29986,-29987,-29986,-29986,-29987,-29990,-29991]} 1. e4 {[%emt 0:00:21]} c5 {[%emt 0:00:07]} 2. Nf3 {[%emt 0:00:10]} d6 {[%emt 0:01:11]} 3. d4 {[%emt 0:00:55]} cxd4 {[%emt 0:00:07]} 4. Nxd4 {[%emt 0:00:06]} Nf6 {[%emt 0:00:05]} 5. Nc3 {[%emt 0:00:34]} g6 {[%emt 0:00:27]} 6. Be3 {[%emt 0:01:26]} Bg7 {[%emt 0:01:49]} 7. f3 {[%emt 0:00:19]} O-O {[%emt 0:00:15]} 8. Qd2 {[%emt 0:00:34]} Nc6 {[%emt 0:00:06]} 9. g4 {[%emt 0:00:54]} Be6 {[%emt 0:01:41]} 10. Nxe6 {[%emt 0:00:16]} fxe6 {[%emt 0:00:03]} 11. O-O-O {[%emt 0:00:49]} Ne5 {[%emt 0:01:06]} 12. Be2 {[%emt 0:01:58] Hoping for g5.} Qc8 {[%emt 0:01:36] B76: Sicilian Dragon: Yugoslav Attack, 9 g4 and 9 0-0-0.} 13. Bd4 {[%emt 0:02:51]} Nfd7 {[%emt 0:14:20] [#]} (13... Nc6 $1 $11) 14. Qe3 $146 {[%emt 0:16:54]} ({White should play} 14. f4 $16) ({Predecessor:} 14. f4 Nc4 15. Bxc4 Qxc4 16. Bxg7 Kxg7 17. h3 Rac8 18. Kb1 b5 19. Rhe1 b4 20. Ne2 {0-1 (79) Sadhwani,R (2339)-Le,T (2485) Chess.com INT 2017}) 14... Nc4 $11 {[%emt 0:11:39] The position is equal.} 15. Bxc4 {[%emt 0:00:28]} Qxc4 {[%emt 0:00:10]} 16. Bxg7 {[%emt 0:00:59]} Kxg7 {[%emt 0:00:06]} 17. h4 {[%emt 0:01:52]} Qc5 {[%emt 0:07:57]} (17... Ne5 {seems wilder.} 18. h5 Qc5 19. Qxc5 dxc5 20. hxg6 hxg6 21. a3 Rad8) 18. Qxc5 {[%emt 0:11:54]} Nxc5 {[%emt 0:00:20]} 19. e5 {[%emt 0:00:21]} dxe5 {[%emt 0:20:02]} 20. Rhe1 {[%emt 0:04:03]} (20. Ne4 $11 Nxe4 21. fxe4) 20... Rxf3 $17 {[%emt 0:01:52]} 21. Rxe5 {[%emt 0:00:18]} Rc8 {[%emt 0:00:49]} 22. h5 {[%emt 0:10:03]} Rf4 {[%emt 0:05:19]} 23. hxg6 {[%emt 0:02:50]} hxg6 {[%emt 0:06:30]} 24. g5 {[%emt 0:01:43]} Rf5 {[%emt 0:03:37]} 25. Rde1 {[%emt 0:00:32]} a5 {[%emt 0:01:30]} 26. a4 {[%emt 0:16:41]} Rcf8 {[%emt 0:04:44]} 27. R5e3 {[%emt 0:05:57]} Rxg5 {[%emt 0:01:02]} 28. Ne4 {[%emt 0:00:06]} Nxe4 {[%emt 0:01:25]} 29. Rxe4 {[%emt 0:00:05]} e5 {[%emt 0:00:10]} 30. Rxe5 {[%emt 0:00:14]} Rxe5 {[%emt 0:00:10]} 31. Rxe5 {[%emt 0:00:07][%mdl 4096] Endgame KR-KR} Kf6 {[%emt 0:00:58]} 32. Rxa5 {[%emt 0:00:05]} (32. Rd5 $17 {was worth a try.}) 32... Rd8 $1 $19 {[%emt 0:00:36] Strongly threatening ...g5.} 33. Ra7 {[%emt 0:02:22] [#]} b6 {[%emt 0:02:30]} (33... g5 $1 $17 {[%cal Rg5g4] ...g4 is the strong threat.} 34. Rxb7 g4) 34. Rb7 {[%emt 0:02:21]} Rd6 {[%emt 0:00:36]} 35. b4 {[%emt 0:01:48]} g5 {[%emt 0:00:15] White must now prevent ...g4.} 36. a5 {[%emt 0:01:37]} bxa5 {[%emt 0:01:33]} 37. bxa5 {[%emt 0:00:05]} g4 {[%emt 0:00:30]} 38. Rb6 {[%emt 0:00:47] White threatens Rxd6+ and mate.} Ke5 {[%emt 0:03:11] And now ...Rxb6 would win.} (38... g3 $5 39. Rb3 g2 $11) 39. Rb7 {[%emt 0:02:51]} e6 {[%emt 0:02:25] White should prevent ...g3.} 40. Rf7 {[%emt 0:00:50]} (40. c4 $1 $11 {keeps the balance.}) 40... Ke4 {[%emt 0:00:36]} 41. Kb2 $2 {[%emt 0:31:20][%mdl 8192] [#]} ({White should try} 41. Rg7 $15) 41... g3 $2 {[%emt 0:31:45]} (41... Ra6 $1 $19 {[%cal Ra6a5]} 42. Rf6 Ke5) 42. Kb3 $2 {[%emt 0:00:56][%mdl 8192]} ({White has to play} 42. Rg7 $15) 42... g2 {[%emt 0:00:50]} 43. Rg7 {[%emt 0:00:04]} Kf3 {[%emt 0:00:04]} 44. Kb4 $2 {[%emt 0:01:46][%mdl 8192]} (44. Rf7+ $17 Kg3 45. Rg7+ Kf2 46. Rf7+ Kg3 47. Rg7+ Kf3 48. Rf7+ Ke2 49. Rg7) 44... e5 {[%emt 0:01:19]} (44... Rd4+ $142 45. Kc5 Rg4 46. Rxg4 Kxg4 47. Kc6 g1=Q 48. Kd7 e5 49. c4 Qc5 50. a6 e4 51. a7 Qxa7+ 52. Kd6 e3 53. Ke6 e2 54. Kd5 e1=Q 55. c5 Qd2+ 56. Ke6 Qad7+ 57. Kf6 Qg5#) 45. Kc5 {[%emt 0:03:01]} Rf6 {[%emt 0:02:44]} (45... Rd4 $142 46. c4 Rg4 47. Rxg4 Kxg4 48. Kb6 g1=Q+ 49. c5 Qd4 50. a6 Qb4+ 51. Kc6 Qa5 52. Kd5 Kf5 53. a7 Qxa7 54. Kc4 e4 55. Kd4 Qa6 56. Kd5 e3 57. c6 e2 58. Kd6 e1=Q 59. Kd7 Qe6+ 60. Kc7 Qe7+ 61. Kb8 Qd8#) 46. c4 {[%emt 0:02:40]} e4 {[%emt 0:00:39] ( -> ...Rf8)} 47. Kd4 {[%emt 0:00:07]} e3 {[%emt 0:00:46] Black mates.} 48. Rxg2 {[%emt 0:00:24]} Rd6+ {[%emt 0:01:40]} ({And not} 48... Kxg2 49. Kxe3 Rh6 50. Kd4 $11) 49. Ke5 {[%emt 0:00:21]} Kxg2 {[%emt 0:00:21]} 50. Kxd6 {[%emt 0:00:05]} e2 {[%emt 0:00:03]} 51. c5 {[%emt 0:02:43]} e1=Q {[%emt 0:00:06]} 52. c6 {[%emt 0:00:00]} Qd2+ {[%emt 0:00:00]} 53. Kc7 {[%emt 0:00:00]} Qxa5+ {[%emt 0:00:00]} 54. Kb7 {[%emt 0:00:00]} Qb5+ {[%emt 0:00:00] Weighted Error Value: White=0.84/Black=0.58} 0-1

[Event "Krakow Championship-A 2022"]
[Site "Krakow"]
[Date "2022.06.26"]
[Round "2.1"]
[White "Turcan, Richard"]
[Black "Pechac, Jergus"]
[Result "0-1"]
[ECO "C60"]
[WhiteElo "2278"]
[BlackElo "2597"]
[Annotator "TA"]
[PlyCount "62"]
[EventDate "2022.06.25"]
[EventType "swiss"]
[EventCountry "POL"]
[SourceTitle "playchess.com"]
[Source "ChessBase"]
[SourceQuality "1"]
[TimeControl "40/5400+30:1800+30"]

{[%evp 9,62,37,40,14,10,18,25,14,7,10,20,0,0,0,0,0,75,0,0,0,0,0,0,0,0,-54,-52,-46,-57,-45,-60,-60,-50,-88,-81,-58,-87,-325,-317,-351,-340,-327,-325,-321,-222,-164,-98,-283,-294,-510,-508,-616,-618,-578,-404]} 1. e4 {[%emt 0:00:10]} e5 {[%emt 0:00:07]} 2. Nf3 {[%emt 0:00:09]} Nc6 {[%emt 0:00:06]} 3. Bb5 {[%emt 0:00:13]} Nge7 {[%emt 0:00:08]} 4. O-O {[%emt 0:00:34]} Ng6 {[%emt 0:00:21]} 5. c3 {[%emt 0:00:50]} a6 {[%emt 0:00:09]} 6. Ba4 {[%emt 0:01:14] C60: Ruy Lopez: Unusual Black 3rd moves and 3...g6.} d5 {[%emt 0:00:09][%cal Bd7d5,Bd5e4,Be4f3][%mdl 32]} 7. d4 {[%emt 0:08:18] And now exd5 would win.} dxe4 {[%emt 0:00:09]} 8. Bxc6+ {[%emt 0:00:37] White has an edge.} bxc6 {[%emt 0:00:06]} 9. Nxe5 {[%emt 0:00:06] [#]} Bd6 $146 {[%emt 0:00:06]} ({Predecessor:} 9... Nxe5 10. dxe5 Qxd1 11. Rxd1 Be7 12. Nd2 e3 13. fxe3 Bg4 14. Nf3 Bf5 15. Nd4 Bg4 {½-½ (25) Hayashi,K (1677)-Iglesias,V (1892) ICCF email 2013}) 10. f4 {[%emt 0:17:15]} exf3 {[%emt 0:03:50]} 11. Nxf7 {[%emt 0:12:50]} Bxh2+ $1 {[%emt 0:00:10]} (11... Kxf7 $2 12. Qxf3+ (12. Rxf3+ Ke8 $17) 12... Qf6 13. Qh5 Qxf1+ 14. Kxf1 $18) 12. Kxh2 {[%emt 0:00:05]} Qh4+ {[%emt 0:00:06]} 13. Kg1 {[%emt 0:00:06]} Bg4 $1 {[%emt 0:00:07]} 14. Bg5 {[%emt 0:15:51]} Qg3 {[%emt 0:04:00][%csl Gf3][%cal Rg3g2]} 15. Rf2 {[%emt 0:07:18]} O-O {[%emt 0:04:45][%cal Bh8f8,Bf8f7,Bf7f5,Bf5h5][%mdl 32]} ({Don't take} 15... Kxf7 16. Nd2 Rhe8 17. Qa4 $14 (17. Nxf3 Kg8 $11)) 16. Nd2 {[%emt 0:03:17][%cal Of7h6]} Rae8 $1 {[%emt 0:00:06]} (16... Rxf7 $2 17. Ne4 fxg2 18. Qb3 $18) 17. Nf1 {[%emt 0:09:32] [#]} ({White should try} 17. Ne5 $11 Nxe5 18. Ne4 Qxg2+ 19. Rxg2 fxg2 20. Qb3+ Be6 21. Qb7 Nf3+ 22. Kxg2) 17... Qxf2+ $1 $15 {[%emt 0:00:07]} 18. Kxf2 {[%emt 0:00:04]} Re2+ {[%emt 0:00:08]} 19. Kg1 {[%emt 0:00:30][%cal Og2f3] gxf3! is the strong threat.} Rxg2+ {[%emt 0:03:53]} 20. Kh1 {[%emt 0:00:09]} Rxf7 {[%emt 0:00:07]} 21. Qb3 {[%emt 0:09:15] [#]} Bf5 $1 {[%emt 0:02:57][%cal Bg4f5,Bf5e4,Be4d5,Bd5f7][%mdl 1056] Black has strong compensation. 0x0.002229e852e7dp-1022s more active pieces.} 22. Be3 {[%emt 0:02:20]} Be4 $1 {[%emt 0:01:31] Hoping for ...f2. Dancing on a razor blade.} 23. Nd2 $2 {[%emt 0:04:12]} (23. Qe6 $17 Bd5 24. Qe8+ Rf8 25. Qd7) 23... Bd5 $19 {[%emt 0:00:06]} 24. c4 {[%emt 0:00:03]} Rf5 {[%emt 0:00:17][%cal Rf5h5]} 25. Qb8+ {[%emt 0:00:12]} Nf8 {[%emt 0:00:18][%cal Rf5h5]} 26. Qe8 {[%emt 0:00:19] Prevents Rh5+.} Bf7 $40 {[%emt 0:16:01][%cal Rf5h5][%mdl 128] Black attacks with force.} 27. Nxf3 {[%emt 0:00:40] [#] Threatens to win with Qe4.} Rg6 {[%emt 0:00:35]} ({Not} 27... Bxe8 28. Kxg2 Bh5 29. Nd2 $15) (27... Rg3 $1 $19 28. Qxc6 Rh5+ 29. Nh2 Rxe3 30. Qxc7 Re2) 28. Qe4 {[%emt 0:01:19]} (28. Nh4 $17 Bxe8 29. Nxf5) 28... Rh5+ {[%emt 0:00:06]} 29. Qh4 $2 {[%emt 0:00:51]} (29. Nh2 {was the only chance.} Bxc4 30. Qxg6 Nxg6 31. Kg1) 29... Rg3 {[%emt 0:00:17] Black is clearly winning.} 30. Rg1 {[%emt 0:02:06]} Rxh4+ {[%emt 0:00:18]} 31. Nxh4 {[%emt 0:00:06]} Rh3+ {[%emt 0:00:03] Weighted Error Value: White=0.53/Black=0.06 (flawless)} 0-1

[Event "Krakow Championship-A 2022"]
[Site "Krakow"]
[Date "2022.06.26"]
[Round "2.2"]
[White "Agdestein, Simen"]
[Black "Mikrut, Dariusz"]
[Result "1-0"]
[ECO "E98"]
[WhiteElo "2559"]
[BlackElo "2361"]
[Annotator "TA"]
[PlyCount "53"]
[EventDate "2022.06.25"]
[EventType "swiss"]
[EventCountry "POL"]
[SourceTitle "playchess.com"]
[Source "ChessBase"]
[SourceQuality "1"]
[TimeControl "40/5400+30:1800+30"]

{[%evp 22,53,64,66,73,66,79,78,75,77,75,66,83,70,164,166,197,154,174,152,315,144,523,500,516,518,509,528,845,838,804,796,973,944]} 1. d4 {[%emt 0:00:01]} Nf6 {[%emt 0:00:16]} 2. c4 {[%emt 0:00:09]} g6 {[%emt 0:00:06]} 3. Nc3 {[%emt 0:00:03]} Bg7 {[%emt 0:00:06]} 4. e4 {[%emt 0:00:04]} d6 {[%emt 0:00:05]} 5. Nf3 {[%emt 0:00:10][%cal Bg1f3,Bf3e1,Be1d3][%mdl 32]} O-O {[%emt 0:00:06]} 6. Be2 {[%emt 0:00:02]} e5 {[%emt 0:00:08]} 7. O-O {[%emt 0:00:08]} Nc6 {[%emt 0:00:02]} 8. d5 {[%emt 0:00:15]} Ne7 {[%emt 0:00:06]} 9. Ne1 {[%emt 0:00:09]} Nd7 {[%emt 0:00:08]} 10. Nd3 {[%emt 0:02:13]} f5 {[%emt 0:01:55]} 11. f3 {[%emt 0:00:04] seems to push 11.Bd2 aside.} Kh8 {[%emt 0:06:05]} 12. Be3 {[%emt 0:17:11]} c5 {[%emt 0:06:18] E99: King's Indian: Classical Main Line: 9 Ne1 Nd7 10 f3 f5.} 13. Rb1 {[%emt 0:06:33] [#] White is more active.} f4 $146 {[%emt 0:15:22]} ({Predecessor:} 13... b6 14. a3 Nf6 15. b4 f4 16. Bf2 g5 17. a4 Ng6 18. a5 Rg8 19. Ra1 Bd7 20. Ra2 {0-1 (53) Maldonado Pacheco,J (2356)-Canibal,J (2313) ICCF email 2018}) 14. Bf2 {[%emt 0:01:14]} g5 {[%emt 0:00:23] White is better.} 15. b4 {[%emt 0:01:23][%cal Rb4c5]} b6 {[%emt 0:00:05]} 16. Nb5 {[%emt 0:04:07]} Rf6 {[%emt 0:01:44]} 17. Qa4 {[%emt 0:08:52]} g4 {[%emt 0:23:29]} (17... Rg6 $14) 18. fxg4 $18 {[%emt 0:01:38] Strongly threatening g5.} Rg6 {[%emt 0:02:49]} 19. h3 {[%emt 0:05:23]} (19. Nxa7 $6 Qf8 $16) 19... Ng8 {[%emt 0:15:08]} 20. Rb3 {[%emt 0:09:31]} ({Much less strong is} 20. Nxa7 $6 Bf6 $14) 20... Ndf6 $2 {[%emt 0:00:53]} (20... Bf8 $16 {is a better defense.} 21. bxc5 (21. Nxa7 Qc7 $16) 21... Nxc5 22. Nxc5 dxc5) 21. Bf3 $40 {[%emt 0:03:38][%mdl 128] Black is in trouble.} (21. bxc5 $18 bxc5 {[#]} 22. Nxd6 $1 {[%mdl 512]} Qxd6 23. Bxc5) 21... a6 $2 {[%emt 0:05:53][%mdl 8192]} (21... Nxg4 $16 22. hxg4 Bxg4) 22. bxc5 {[%emt 0:05:44] White is clearly winning.} bxc5 {[%emt 0:02:19] [#]} 23. Nxd6 $1 {[%emt 0:01:09][%mdl 512]} Qxd6 {[%emt 0:00:25]} 24. Bxc5 {[%emt 0:00:11]} Qd7 {[%emt 0:02:36] [#]} 25. Nxe5 $1 {[%emt 0:00:46] Hoping for Qxd7.} Qc7 {[%emt 0:00:07]} 26. Bd4 {[%emt 0:15:33] d6 is the strong threat.} Nh5 {[%emt 0:11:18]} 27. gxh5 {Black got outplayed after the opening.  Weighted Error Value: White=0.20 (precise) /Black=0.77} 1-0